[Event "4NCL 2023-2024"]
[Site "Daventry"]
[Date "2024.05.06"]
[Round "11.48"]
[White "Cooke, Suzie G."]
[Black "Stoica, Savas Marin"]
[Result "0-1"]
[ECO "A45"]
[WhiteElo "1955"]
[BlackElo "2100"]
[Annotator "NA RC"]
[PlyCount "68"]
[EventDate "2023.11.11"]
[EventType "team-tourn"]
[EventCountry "ENG"]
[SourceTitle "playchess.com"]
[Source "ChessBase"]
[SourceQuality "1"]
[TimeControl "40/6000+30:3000+30"]

1. d4 {[%emt 0:00:07]} Nf6 {[%emt 0:00:32]} 2. Bf4 {[%emt 0:00:07]} b6 {[%emt 0:00:30]} 3. e3 {[%emt 0:02:36]} Bb7 {[%emt 0:00:26]} 4. Nd2 {[%emt 0:00:32]} h6 {[%emt 0:02:23]} 5. h3 {[%emt 0:02:25]} e6 {[%emt 0:04:09]} 6. Ngf3 {[%emt 0:01:23]} Be7 {[%emt 0:00:56]} 7. Bd3 {[%emt 0:02:13]} c5 {[%emt 0:06:57]} 8. c3 {[%emt 0:00:08]} O-O {[%emt 0:01:45]} 9. O-O {[%emt 0:01:18]} d5 {[%emt 0:01:55]} 10. Ne5 {[%emt 0:08:27]} Ne4 {[%emt 0:13:45]} 11. Nxe4 {[%emt 0:08:16]} dxe4 {[%emt 0:00:16]} 12. Bc4 {[%emt 0:00:59]} cxd4 {[%emt 0:06:50]} 13. Qg4 {[%emt 0:20:29]} dxc3 {[%emt 0:35:18]} 14. Bxh6 {[%emt 0:04:15]} Bf6 {[%emt 0:00:28]} 15. Nxf7 $19 {[%emt 0:02:49]} Rxf7 {[%emt 0:00:11]} 16. Qxe6 {[%emt 0:01:37]} Qe7 {[%emt 0:00:08]} 17. Qxe7 {[%emt 0:11:34]} Bxe7 {[%emt 0:00:25]} 18. Bf4 {[%emt 0:00:44]} cxb2 {[%emt 0:00:08]} 19. Rad1 {[%emt 0:04:06]} Kf8 {[%emt 0:05:28]} 20. Bxf7 {[%emt 0:02:46]} Kxf7 {[%emt 0:00:06]} 21. Be5 {[%emt 0:05:50]} Ba6 {[%emt 0:00:08]} 22. Bxb2 {[%emt 0:02:46]} Bxf1 {[%emt 0:01:28]} 23. Kxf1 {[%emt 0:00:04]} Na6 {[%emt 0:00:25]} 24. Be5 {[%emt 0:07:41]} Nc5 {[%emt 0:02:02]} 25. Bd4 {[%emt 0:01:26]} Rd8 {[%emt 0:01:01]} 26. Rc1 {[%emt 0:00:18]} Ne6 {[%emt 0:01:33]} 27. Be5 {[%emt 0:02:32]} Rd2 {[%emt 0:01:08]} 28. a4 {[%emt 0:00:02]} Nc5 {[%emt 0:00:49]} 29. Ra1 {[%emt 0:02:44]} Nd3 {[%emt 0:00:46]} 30. Bg3 {[%emt 0:00:12]} Bf6 {[%emt 0:03:15]} 31. Ra3 {[%emt 0:02:39]} Bb2 {[%emt 0:00:22]} 32. Ra2 {[%emt 0:02:19]} Nb4 {[%emt 0:00:11]} 33. Ke1 {[%emt 0:00:30]} Rc2 {[%emt 0:00:04]} 34. Kd1 {[%emt 0:00:24]} Rc1+ {[%emt 0:00:03]} 0-1